[Event "Titled Tuesday Blitz February 15 Early 2022"]
[White "Terry, Renato"]
[Black "Ponkratov, Pavel"]
[WhiteFideId "3803457"]
[BlackFideId "4157800"]
[WhiteElo "2577"]
[BlackElo "2487"]
[Result "1-0"]
[Round "09"]
[TimeControl "180+1"]
[Date "2022.02.15"]
[WhiteClock "0:00:03"]
[BlackClock "0:00:16"]

1. d4 {[%clk 0:03:00]}  Nf6 {[%clk 0:02:54]} 2. Bg5 {[%clk 0:02:59]}  c5 {[%clk 0:02:54]} 3. Bxf6 {[%clk 0:02:59]}  gxf6 {[%clk 0:02:54]} 4. d5 {[%clk 0:03:00]}  Qb6 {[%clk 0:02:54]} 5. Qc1 {[%clk 0:03:00]}  f5 {[%clk 0:02:54]} 6. c4 {[%clk 0:03:00]}  Bh6 {[%clk 0:02:53]} 7. Qc2 {[%clk 0:02:58]}  f4 {[%clk 0:02:52]} 8. g3 {[%clk 0:02:54]}  d6 {[%clk 0:02:51]} 9. Bh3 {[%clk 0:02:47]}  Na6 {[%clk 0:02:47]} 10. a3 {[%clk 0:02:38]}  e6 {[%clk 0:02:41]} 11. Nc3 {[%clk 0:02:37]}  Qa5 {[%clk 0:02:35]} 12. Kf1 {[%clk 0:02:32]}  Bd7 {[%clk 0:02:28]} 13. Rd1 {[%clk 0:02:27]}  O-O-O {[%clk 0:02:20]} 14. dxe6 {[%clk 0:02:08]}  Bxe6 {[%clk 0:02:19]} 15. Bxe6+ {[%clk 0:01:39]}  fxe6 {[%clk 0:02:19]} 16. Nf3 {[%clk 0:01:40]}  Kb8 {[%clk 0:02:15]} 17. Qe4 {[%clk 0:01:32]}  Nc7 {[%clk 0:02:04]} 18. Kg2 {[%clk 0:01:24]}  Qb6 {[%clk 0:01:52]} 19. Qc2 {[%clk 0:01:05]}  Qc6 {[%clk 0:01:48]} 20. Rhe1 {[%clk 0:00:44]}  d5 {[%clk 0:01:41]} 21. Ne5 {[%clk 0:00:39]}  Qe8 {[%clk 0:01:41]} 22. b4 {[%clk 0:00:33]}  fxg3 {[%clk 0:01:40]} 23. hxg3 {[%clk 0:00:33]}  Bg7 {[%clk 0:01:41]} 24. Nf3 {[%clk 0:00:31]}  Qg6 {[%clk 0:01:36]} 25. Qb3 {[%clk 0:00:14]}  cxb4 {[%clk 0:01:27]} 26. Qxb4 {[%clk 0:00:12]}  Na6 {[%clk 0:01:07]} 27. Qa5 {[%clk 0:00:12]}  Qc2 {[%clk 0:01:00]} 28. Rc1 {[%clk 0:00:06]}  Bxc3 {[%clk 0:00:56]} 29. Qxc3 {[%clk 0:00:06]}  Qxc3 {[%clk 0:00:56]} 30. Rxc3 {[%clk 0:00:07]}  Rc8 {[%clk 0:00:54]} 31. Rec1 {[%clk 0:00:07]}  dxc4 {[%clk 0:00:40]} 32. Rxc4 {[%clk 0:00:08]}  Rxc4 {[%clk 0:00:39]} 33. Rxc4 {[%clk 0:00:09]}  b6 {[%clk 0:00:39]} 34. Rh4 {[%clk 0:00:03]}  Nc5 {[%clk 0:00:36]} 35. Rh6 {[%clk 0:00:03]}  Kc7 {[%clk 0:00:31]} 36. Ng5 {[%clk 0:00:03]}  b5 {[%clk 0:00:16]} 37. Nxe6+ {[%clk 0:00:01]}  Kd6 {[%clk 0:00:15]} 38. Nxc5+ {[%clk 0:00:01]}  Kxc5 {[%clk 0:00:15]} 39. Ra6 {[%clk 0:00:02]}  Ra8 {[%clk 0:00:15]} 40. e4 {[%clk 0:00:02]}  Kd4 {[%clk 0:00:14]} 41. f3 {[%clk 0:00:02]}  Ke3 {[%clk 0:00:14]} 42. e5 {[%clk 0:00:02]}  Rc8 {[%clk 0:00:13]} 43. f4 {[%clk 0:00:03]}  Rc2+ {[%clk 0:00:14]} 44. Kh3 {[%clk 0:00:03]}  Kf3 {[%clk 0:00:14]} 45. Rxa7 {[%clk 0:00:03]}  Rc1 {[%clk 0:00:14]} 46. Kh4 {[%clk 0:00:03]}  h6 {[%clk 0:00:15]} 47. Kh5 {[%clk 0:00:03]}  Kxg3 {[%clk 0:00:15]} 48. f5 {[%clk 0:00:03]}  Kf4 {[%clk 0:00:15]} 49. f6 {[%clk 0:00:01]}  Kxe5 {[%clk 0:00:16]} 50. f7 {[%clk 0:00:02]}  Rf1 {[%clk 0:00:16]} 51. Kg6 {[%clk 0:00:01]}  h5 {[%clk 0:00:14]} 52. Kg7 {[%clk 0:00:02]}  Rg1+ {[%clk 0:00:14]} 53. Kf8 {[%clk 0:00:02]}  h4 {[%clk 0:00:15]} 54. Ke8 {[%clk 0:00:02]}  h3 {[%clk 0:00:14]} 55. f8=Q {[%clk 0:00:03]}  h2 {[%clk 0:00:15]} 56. Re7+ {[%clk 0:00:03]}  Kd4 {[%clk 0:00:15]} 57. Qf4+ {[%clk 0:00:03]}  Kc5 {[%clk 0:00:16]} 58. Qxh2 {[%clk 0:00:03]}  Rg8+ {[%clk 0:00:15]} 59. Kf7 {[%clk 0:00:04]}  Rc8 {[%clk 0:00:16]} 60. Qe5+ {[%clk 0:00:04]}  Kb6 {[%clk 0:00:16]} 61. Re6+ {[%clk 0:00:05]}  Ka5 {[%clk 0:00:16]} 62. Qe1+ {[%clk 0:00:03]}  Ka4 {[%clk 0:00:16]} 63. Qb4# {[%clk 0:00:03]} 1-0


[Site "https://www.chess.com"]

[Event "Titled Tuesday Blitz February 15 Early 2022"]
[White "Todorovic, Bojan"]
[Black "Carrasco Miranda, Andres"]
[WhiteFideId "917087"]
[BlackFideId "3405990"]
[WhiteElo "2266"]
[BlackElo "2177"]
[Result "0-1"]
[Round "09"]
[TimeControl "180+1"]
[Date "2022.02.15"]
[WhiteClock "0:00:01"]
[BlackClock "0:00:56"]

1. Nf3 {[%clk 0:02:59]}  g6 {[%clk 0:02:58]} 2. c4 {[%clk 0:02:57]}  Bg7 {[%clk 0:02:58]} 3. Nc3 {[%clk 0:02:57]}  Nf6 {[%clk 0:02:56]} 4. d4 {[%clk 0:02:54]}  d5 {[%clk 0:02:56]} 5. Bg5 {[%clk 0:02:50]}  Ne4 {[%clk 0:02:54]} 6. Bh4 {[%clk 0:02:47]}  Nxc3 {[%clk 0:02:53]} 7. bxc3 {[%clk 0:02:47]}  dxc4 {[%clk 0:02:54]} 8. e3 {[%clk 0:02:48]}  O-O {[%clk 0:02:54]} 9. Bxc4 {[%clk 0:02:44]}  b6 {[%clk 0:02:53]} 10. Qb3 {[%clk 0:02:12]}  Ba6 {[%clk 0:02:46]} 11. Bxa6 {[%clk 0:01:24]}  Nxa6 {[%clk 0:02:47]} 12. O-O {[%clk 0:01:23]}  c5 {[%clk 0:02:39]} 13. Qa3 {[%clk 0:01:16]}  Nc7 {[%clk 0:02:34]} 14. dxc5 {[%clk 0:01:12]}  Re8 {[%clk 0:02:34]} 15. Nd4 {[%clk 0:01:04]}  Qd5 {[%clk 0:02:24]} 16. cxb6 {[%clk 0:00:55]}  axb6 {[%clk 0:02:23]} 17. Qb3 {[%clk 0:00:56]}  e5 {[%clk 0:02:18]} 18. Qxd5 {[%clk 0:00:47]}  Nxd5 {[%clk 0:02:19]} 19. Nb5 {[%clk 0:00:48]}  Ra4 {[%clk 0:02:12]} 20. Bg3 {[%clk 0:00:43]}  e4 {[%clk 0:02:07]} 21. Nd6 {[%clk 0:00:18]}  Rea8 {[%clk 0:02:06]} 22. Rab1 {[%clk 0:00:09]}  f5 {[%clk 0:01:43]} 23. h4 {[%clk 0:00:08]}  Rxa2 {[%clk 0:01:42]} 24. Rb5 {[%clk 0:00:07]}  Nxc3 {[%clk 0:01:41]} 25. Rxb6 {[%clk 0:00:07]}  Ne2+ {[%clk 0:01:41]} 26. Kh2 {[%clk 0:00:07]}  Nxg3 {[%clk 0:01:42]} 27. fxg3 {[%clk 0:00:07]}  Re2 {[%clk 0:01:41]} 28. Nc4 {[%clk 0:00:05]}  Bh6 {[%clk 0:01:35]} 29. Rd1 {[%clk 0:00:04]}  Rc8 {[%clk 0:01:28]} 30. Ne5 {[%clk 0:00:03]}  Bxe3 {[%clk 0:01:25]} 31. Nd7 {[%clk 0:00:03]}  Bxb6 {[%clk 0:01:24]} 32. Nxb6 {[%clk 0:00:03]}  Rcc2 {[%clk 0:01:23]} 33. Rg1 {[%clk 0:00:01]}  e3 {[%clk 0:01:21]} 34. Nd5 {[%clk 0:00:01]}  Rcd2 {[%clk 0:01:15]} 35. Nf4 {[%clk 0:00:02]}  Rf2 {[%clk 0:01:15]} 36. Re1 {[%clk 0:00:02]}  e2 {[%clk 0:01:07]} 37. Kg1 {[%clk 0:00:01]}  Rxf4 {[%clk 0:01:07]} 38. gxf4 {[%clk 0:00:01]}  Kg7 {[%clk 0:00:53]} 39. Kf2 {[%clk 0:00:02]}  Kh6 {[%clk 0:00:54]} 40. Rxe2 {[%clk 0:00:02]}  Rxe2+ {[%clk 0:00:54]} 41. Kxe2 {[%clk 0:00:03]}  Kh5 {[%clk 0:00:55]} 42. g3 {[%clk 0:00:02]}  Kg4 {[%clk 0:00:56]} 43. Kf2 {[%clk 0:00:03]}  Kh3 {[%clk 0:00:55]} 44. Kf3 {[%clk 0:00:03]}  h5 {[%clk 0:00:53]} 45. Kf2 {[%clk 0:00:03]}  Kh2 {[%clk 0:00:53]} 46. Kf3 {[%clk 0:00:02]}  Kg1 {[%clk 0:00:54]} 47. Ke3 {[%clk 0:00:01]}  Kg2 {[%clk 0:00:54]} 48. Kd4 {[%clk 0:00:01]}  Kxg3 {[%clk 0:00:54]} 49. Ke5 {[%clk 0:00:02]}  Kg4 {[%clk 0:00:54]} 50. Kf6 {[%clk 0:00:02]}  Kxf4 {[%clk 0:00:54]} 51. Kxg6 {[%clk 0:00:02]}  Kg4 {[%clk 0:00:55]} 52. Kf6 {[%clk 0:00:01]}  f4 {[%clk 0:00:56]} 0-1


[Site "https://www.chess.com"]

[Event "Titled Tuesday Blitz February 15 Early 2022"]
[White "Tregubov, Pavel V."]
[Black "Cramling Bellon, Anna"]
[WhiteFideId "4115341"]
[BlackFideId "32009232"]
[WhiteElo "2341"]
[BlackElo "1905"]
[Result "1-0"]
[Round "09"]
[TimeControl "180+1"]
[Date "2022.02.15"]
[WhiteClock "0:01:10"]
[BlackClock "0:00:14"]

1. e4 {[%clk 0:02:48]}  c5 {[%clk 0:02:58]} 2. Nf3 {[%clk 0:02:49]}  e6 {[%clk 0:02:57]} 3. c3 {[%clk 0:02:48]}  Nf6 {[%clk 0:02:57]} 4. e5 {[%clk 0:02:48]}  Nd5 {[%clk 0:02:56]} 5. d4 {[%clk 0:02:49]}  cxd4 {[%clk 0:02:57]} 6. cxd4 {[%clk 0:02:49]}  d6 {[%clk 0:02:57]} 7. Bc4 {[%clk 0:02:49]}  Nb6 {[%clk 0:02:50]} 8. Bd3 {[%clk 0:02:49]}  Nc6 {[%clk 0:02:48]} 9. O-O {[%clk 0:02:47]}  Be7 {[%clk 0:02:44]} 10. Nc3 {[%clk 0:02:46]}  O-O {[%clk 0:02:44]} 11. Qe2 {[%clk 0:02:44]}  dxe5 {[%clk 0:02:44]} 12. dxe5 {[%clk 0:02:44]}  Nd5 {[%clk 0:02:40]} 13. Qe4 {[%clk 0:02:41]}  g6 {[%clk 0:02:39]} 14. Bh6 {[%clk 0:02:40]}  Re8 {[%clk 0:02:39]} 15. Rad1 {[%clk 0:02:38]}  Nxc3 {[%clk 0:02:31]} 16. bxc3 {[%clk 0:02:37]}  Qc7 {[%clk 0:02:30]} 17. Rfe1 {[%clk 0:02:33]}  b6 {[%clk 0:02:21]} 18. Qf4 {[%clk 0:02:27]}  Bb7 {[%clk 0:02:18]} 19. Ng5 {[%clk 0:02:24]}  Bf8 {[%clk 0:02:11]} 20. Qh4 {[%clk 0:02:17]}  Nxe5 {[%clk 0:01:04]} 21. Bxf8 {[%clk 0:02:13]}  Kxf8 {[%clk 0:00:59]} 22. Qxh7 {[%clk 0:01:25]}  Nxd3 {[%clk 0:00:59]} 23. Rxd3 {[%clk 0:01:20]}  Qf4 {[%clk 0:00:42]} 24. Rd7 {[%clk 0:01:11]}  Re7 {[%clk 0:00:14]} 25. Qh8# {[%clk 0:01:10]} 1-0


[Site "https://www.chess.com"]

[Event "Titled Tuesday Blitz February 15 Early 2022"]
[White "Tuleyeva-Aketayeva, Dana"]
[Black "Clawitter, Craig"]
[WhiteFideId "13701932"]
[BlackFideId "2023105"]
[WhiteElo "1944"]
[BlackElo "2137"]
[Result "0-1"]
[Round "09"]
[TimeControl "180+1"]
[Date "2022.02.15"]
[WhiteClock "0:00:04"]
[BlackClock "0:00:40"]

1. d4 {[%clk 0:02:58]}  e6 {[%clk 0:03:00]} 2. Nf3 {[%clk 0:02:57]}  Nf6 {[%clk 0:03:00]} 3. g3 {[%clk 0:02:57]}  d5 {[%clk 0:03:00]} 4. Bg2 {[%clk 0:02:57]}  Be7 {[%clk 0:03:00]} 5. c4 {[%clk 0:02:58]}  O-O {[%clk 0:03:00]} 6. O-O {[%clk 0:02:58]}  dxc4 {[%clk 0:03:01]} 7. Ne5 {[%clk 0:02:58]}  Nc6 {[%clk 0:03:00]} 8. Nxc6 {[%clk 0:02:55]}  bxc6 {[%clk 0:03:01]} 9. Bxc6 {[%clk 0:02:55]}  Rb8 {[%clk 0:02:53]} 10. Bg2 {[%clk 0:02:55]}  c5 {[%clk 0:02:48]} 11. dxc5 {[%clk 0:02:38]}  Qa5 {[%clk 0:02:48]} 12. c6 {[%clk 0:02:29]}  Rd8 {[%clk 0:02:40]} 13. Qc2 {[%clk 0:02:25]}  Ba6 {[%clk 0:02:27]} 14. Bf4 {[%clk 0:02:20]}  e5 {[%clk 0:02:25]} 15. Be3 {[%clk 0:02:17]}  Nd5 {[%clk 0:02:18]} 16. Bxa7 {[%clk 0:02:09]}  Rbc8 {[%clk 0:02:18]} 17. Nc3 {[%clk 0:02:06]}  Nb4 {[%clk 0:02:11]} 18. Qa4 {[%clk 0:01:58]}  Qxa4 {[%clk 0:01:56]} 19. Nxa4 {[%clk 0:01:57]}  Nxc6 {[%clk 0:01:50]} 20. Bb6 {[%clk 0:01:43]}  Rd2 {[%clk 0:01:43]} 21. Rfe1 {[%clk 0:01:31]}  Nd4 {[%clk 0:01:31]} 22. Bxd4 {[%clk 0:00:45]}  exd4 {[%clk 0:01:31]} 23. Rad1 {[%clk 0:00:44]}  c3 {[%clk 0:01:16]} 24. bxc3 {[%clk 0:00:42]}  Rxd1 {[%clk 0:00:55]} 25. Rxd1 {[%clk 0:00:41]}  dxc3 {[%clk 0:00:56]} 26. Be4 {[%clk 0:00:20]}  Bxe2 {[%clk 0:00:43]} 27. Re1 {[%clk 0:00:16]}  c2 {[%clk 0:00:42]} 28. Rc1 {[%clk 0:00:14]}  Bd1 {[%clk 0:00:42]} 29. Nb2 {[%clk 0:00:13]}  Ba3 {[%clk 0:00:41]} 30. Nxd1 {[%clk 0:00:07]}  Bxc1 {[%clk 0:00:40]} 31. Ne3 {[%clk 0:00:04]}  Bxe3 {[%clk 0:00:40]} 0-1


[Site "https://www.chess.com"]

[Event "Titled Tuesday Blitz February 15 Early 2022"]
[White "Vaishali, Rameshbabu"]
[Black "Korkmaz, Necmettin"]
[WhiteFideId "5091756"]
[BlackFideId "6303285"]
[WhiteElo "2343"]
[BlackElo "2094"]
[Result "0-1"]
[Round "09"]
[TimeControl "180+1"]
[Date "2022.02.15"]
[WhiteClock "0:00:01"]
[BlackClock "0:00:58"]

1. d4 {[%clk 0:03:00]}  d5 {[%clk 0:02:57]} 2. c4 {[%clk 0:02:59]}  e5 {[%clk 0:02:53]} 3. dxe5 {[%clk 0:02:57]}  d4 {[%clk 0:02:52]} 4. Nf3 {[%clk 0:02:57]}  Nc6 {[%clk 0:02:53]} 5. a3 {[%clk 0:02:50]}  Nge7 {[%clk 0:02:51]} 6. b4 {[%clk 0:02:40]}  Ng6 {[%clk 0:02:50]} 7. Bb2 {[%clk 0:02:40]}  a5 {[%clk 0:02:50]} 8. b5 {[%clk 0:02:40]}  Ncxe5 {[%clk 0:02:50]} 9. Nxe5 {[%clk 0:02:34]}  Nxe5 {[%clk 0:02:51]} 10. Qxd4 {[%clk 0:02:34]}  Qxd4 {[%clk 0:02:49]} 11. Bxd4 {[%clk 0:02:35]}  Nxc4 {[%clk 0:02:50]} 12. e3 {[%clk 0:02:30]}  Be6 {[%clk 0:02:50]} 13. Be2 {[%clk 0:02:28]}  Be7 {[%clk 0:02:47]} 14. O-O {[%clk 0:02:27]}  O-O {[%clk 0:02:47]} 15. Rc1 {[%clk 0:02:27]}  Nd6 {[%clk 0:02:18]} 16. Rxc7 {[%clk 0:02:14]}  Bd8 {[%clk 0:02:08]} 17. Rc1 {[%clk 0:02:09]}  a4 {[%clk 0:02:07]} 18. Nc3 {[%clk 0:02:07]}  Be7 {[%clk 0:01:56]} 19. Bd1 {[%clk 0:01:20]}  Rfc8 {[%clk 0:01:38]} 20. b6 {[%clk 0:01:05]}  Rc4 {[%clk 0:01:27]} 21. Be2 {[%clk 0:01:01]}  Rcc8 {[%clk 0:01:26]} 22. Bd1 {[%clk 0:00:58]}  Rc4 {[%clk 0:01:26]} 23. Be2 {[%clk 0:00:56]}  Rcc8 {[%clk 0:01:25]} 24. g4 {[%clk 0:00:33]}  h6 {[%clk 0:01:21]} 25. h3 {[%clk 0:00:31]}  Bb3 {[%clk 0:01:18]} 26. Bf3 {[%clk 0:00:22]}  Ra5 {[%clk 0:01:15]} 27. Kg2 {[%clk 0:00:18]}  Rb8 {[%clk 0:01:09]} 28. Ne4 {[%clk 0:00:16]}  Nc4 {[%clk 0:01:06]} 29. Be2 {[%clk 0:00:14]}  Nxa3 {[%clk 0:01:05]} 30. Rc7 {[%clk 0:00:09]}  Bf8 {[%clk 0:01:03]} 31. Bc5 {[%clk 0:00:04]}  Bd5 {[%clk 0:00:59]} 32. f3 {[%clk 0:00:01]}  Bxe4 {[%clk 0:00:58]} 33. Bxa3 {[%clk 0:00:01]}  Bc6 {[%clk 0:00:58]} 34. Bxf8 {[%clk 0:00:01]}  Kxf8 {[%clk 0:00:58]} 0-1


[Site "https://www.chess.com"]

[Event "Titled Tuesday Blitz February 15 Early 2022"]
[White "Varney, Zoe"]
[Black "Ronka, Erik"]
[WhiteFideId "436135"]
[BlackFideId "505080"]
[WhiteElo "1808"]
[BlackElo "2264"]
[Result "1-0"]
[Round "09"]
[TimeControl "180+1"]
[Date "2022.02.15"]
[WhiteClock "0:00:05"]
[BlackClock "0:00:10"]

1. e4 {[%clk 0:03:00]}  c5 {[%clk 0:02:59]} 2. Nf3 {[%clk 0:03:00]}  d6 {[%clk 0:02:59]} 3. d4 {[%clk 0:03:00]}  cxd4 {[%clk 0:03:00]} 4. Nxd4 {[%clk 0:03:01]}  Nf6 {[%clk 0:03:00]} 5. Nc3 {[%clk 0:03:01]}  g6 {[%clk 0:03:00]} 6. Be3 {[%clk 0:02:59]}  Bg7 {[%clk 0:03:01]} 7. f3 {[%clk 0:02:59]}  O-O {[%clk 0:03:01]} 8. Qd2 {[%clk 0:03:00]}  Nc6 {[%clk 0:03:02]} 9. O-O-O {[%clk 0:02:59]}  d5 {[%clk 0:03:02]} 10. Nxc6 {[%clk 0:02:37]}  bxc6 {[%clk 0:03:02]} 11. exd5 {[%clk 0:02:29]}  cxd5 {[%clk 0:02:56]} 12. g4 {[%clk 0:02:08]}  e6 {[%clk 0:02:46]} 13. h4 {[%clk 0:02:02]}  h5 {[%clk 0:02:28]} 14. Bh6 {[%clk 0:01:18]}  Qb6 {[%clk 0:02:07]} 15. Bxg7 {[%clk 0:01:09]}  Kxg7 {[%clk 0:02:08]} 16. Bd3 {[%clk 0:00:44]}  Rb8 {[%clk 0:02:04]} 17. b3 {[%clk 0:00:29]}  Ba6 {[%clk 0:02:01]} 18. Na4 {[%clk 0:00:18]}  Qc6 {[%clk 0:01:48]} 19. Bxa6 {[%clk 0:00:17]}  Qxa6 {[%clk 0:01:49]} 20. gxh5 {[%clk 0:00:14]}  Nxh5 {[%clk 0:01:49]} 21. Rdg1 {[%clk 0:00:14]}  Qd6 {[%clk 0:01:36]} 22. Rg5 {[%clk 0:00:12]}  Qa3+ {[%clk 0:01:26]} 23. Kb1 {[%clk 0:00:12]}  Qxa4 {[%clk 0:01:22]} 24. Rxh5 {[%clk 0:00:10]}  Rh8 {[%clk 0:00:10]} 25. Rxh8 {[%clk 0:00:10]}  Kxh8 {[%clk 0:00:11]} 26. Qh6+ {[%clk 0:00:09]}  Kg8 {[%clk 0:00:12]} 27. h5 {[%clk 0:00:08]}  Qd4 {[%clk 0:00:12]} 28. hxg6 {[%clk 0:00:07]}  Qg7 {[%clk 0:00:12]} 29. gxf7+ {[%clk 0:00:06]}  Kxf7 {[%clk 0:00:12]} 30. Qf4+ {[%clk 0:00:06]}  Qf6 {[%clk 0:00:11]} 31. Qxb8 {[%clk 0:00:06]}  Qxf3 {[%clk 0:00:10]} 32. Rh7+ {[%clk 0:00:06]}  Kg6 {[%clk 0:00:10]} 33. Qg8+ {[%clk 0:00:05]} 1-0


[Site "https://www.chess.com"]

[Event "Titled Tuesday Blitz February 15 Early 2022"]
[White "Von Buelow, Georg"]
[Black "Einarsson, Halldor Gretar"]
[WhiteFideId "4620658"]
[BlackFideId "2300150"]
[WhiteElo "2204"]
[BlackElo "2114"]
[Result "1-0"]
[Round "09"]
[TimeControl "180+1"]
[Date "2022.02.15"]
[WhiteClock "0:01:21"]
[BlackClock "0:00:26"]

1. e4 {[%clk 0:02:59]}  e5 {[%clk 0:00:57]} 2. Nf3 {[%clk 0:02:57]}  Nc6 {[%clk 0:00:57]} 3. Nc3 {[%clk 0:02:56]}  Nf6 {[%clk 0:00:55]} 4. d4 {[%clk 0:02:56]}  exd4 {[%clk 0:00:55]} 5. Nxd4 {[%clk 0:02:57]}  Bb4 {[%clk 0:00:55]} 6. Nxc6 {[%clk 0:02:57]}  bxc6 {[%clk 0:00:54]} 7. Bd3 {[%clk 0:02:58]}  d5 {[%clk 0:00:54]} 8. exd5 {[%clk 0:02:59]}  cxd5 {[%clk 0:00:54]} 9. O-O {[%clk 0:02:59]}  O-O {[%clk 0:00:53]} 10. Bg5 {[%clk 0:02:59]}  c6 {[%clk 0:00:49]} 11. Qf3 {[%clk 0:02:59]}  Be7 {[%clk 0:00:48]} 12. h3 {[%clk 0:02:59]}  h6 {[%clk 0:00:49]} 13. Bf4 {[%clk 0:02:59]}  Be6 {[%clk 0:00:43]} 14. Ne2 {[%clk 0:02:57]}  c5 {[%clk 0:00:42]} 15. c3 {[%clk 0:02:42]}  Bd6 {[%clk 0:00:42]} 16. Rfe1 {[%clk 0:02:31]}  Rb8 {[%clk 0:00:42]} 17. b3 {[%clk 0:02:31]}  Qc7 {[%clk 0:00:39]} 18. Rad1 {[%clk 0:02:27]}  a5 {[%clk 0:00:37]} 19. Bc2 {[%clk 0:02:26]}  a4 {[%clk 0:00:34]} 20. Bxd6 {[%clk 0:02:09]}  Qxd6 {[%clk 0:00:33]} 21. Nf4 {[%clk 0:01:46]}  axb3 {[%clk 0:00:32]} 22. axb3 {[%clk 0:01:47]}  Ra8 {[%clk 0:00:31]} 23. Ra1 {[%clk 0:01:23]}  d4 {[%clk 0:00:26]} 24. Rxa8 {[%clk 0:01:21]} 1-0


[Site "https://www.chess.com"]

[Event "Titled Tuesday Blitz February 15 Early 2022"]
[White "Wartiovaara, Oliver"]
[Black "Gabrielian, Artur"]
[WhiteFideId "513024"]
[BlackFideId "4131002"]
[WhiteElo "1971"]
[BlackElo "2440"]
[Result "0-1"]
[Round "09"]
[TimeControl "180+1"]
[Date "2022.02.15"]
[WhiteClock "0:00:02"]
[BlackClock "0:00:08"]

1. e4 {[%clk 0:03:00]}  e5 {[%clk 0:02:58]} 2. Nf3 {[%clk 0:02:58]}  Nc6 {[%clk 0:02:58]} 3. Bc4 {[%clk 0:02:58]}  Nf6 {[%clk 0:02:58]} 4. d3 {[%clk 0:02:57]}  h6 {[%clk 0:02:56]} 5. O-O {[%clk 0:02:52]}  d6 {[%clk 0:02:55]} 6. a4 {[%clk 0:02:49]}  g6 {[%clk 0:02:55]} 7. Nc3 {[%clk 0:02:47]}  Bg7 {[%clk 0:02:55]} 8. h3 {[%clk 0:02:41]}  O-O {[%clk 0:02:54]} 9. Be3 {[%clk 0:02:32]}  Kh7 {[%clk 0:02:45]} 10. Qd2 {[%clk 0:02:22]}  Nh5 {[%clk 0:02:43]} 11. d4 {[%clk 0:02:10]}  exd4 {[%clk 0:02:40]} 12. Nxd4 {[%clk 0:02:11]}  Ne5 {[%clk 0:02:39]} 13. Be2 {[%clk 0:02:09]}  Nf6 {[%clk 0:02:23]} 14. f4 {[%clk 0:01:57]}  Ned7 {[%clk 0:02:18]} 15. Bf3 {[%clk 0:01:52]}  Re8 {[%clk 0:02:16]} 16. Bf2 {[%clk 0:01:41]}  Nc5 {[%clk 0:02:15]} 17. Rfe1 {[%clk 0:01:39]}  c6 {[%clk 0:02:13]} 18. a5 {[%clk 0:01:37]}  Ne6 {[%clk 0:02:04]} 19. b4 {[%clk 0:01:19]}  c5 {[%clk 0:01:41]} 20. Nxe6 {[%clk 0:01:15]}  Bxe6 {[%clk 0:01:41]} 21. bxc5 {[%clk 0:01:15]}  dxc5 {[%clk 0:01:41]} 22. Qxd8 {[%clk 0:01:14]}  Rexd8 {[%clk 0:01:38]} 23. Rad1 {[%clk 0:01:05]}  Ng4 {[%clk 0:01:30]} 24. Nd5 {[%clk 0:00:47]}  Nxf2 {[%clk 0:01:29]} 25. Kxf2 {[%clk 0:00:48]}  Bd4+ {[%clk 0:01:18]} 26. Kf1 {[%clk 0:00:43]}  Bxd5 {[%clk 0:00:37]} 27. exd5 {[%clk 0:00:42]}  Rd7 {[%clk 0:00:36]} 28. c4 {[%clk 0:00:34]}  Bc3 {[%clk 0:00:34]} 29. Re3 {[%clk 0:00:33]}  Bxa5 {[%clk 0:00:34]} 30. Rb3 {[%clk 0:00:32]}  Bb4 {[%clk 0:00:34]} 31. f5 {[%clk 0:00:31]}  gxf5 {[%clk 0:00:28]} 32. Bh5 {[%clk 0:00:31]}  Rg8 {[%clk 0:00:22]} 33. Rf3 {[%clk 0:00:31]}  Rg5 {[%clk 0:00:22]} 34. g4 {[%clk 0:00:31]}  fxg4 {[%clk 0:00:23]} 35. hxg4 {[%clk 0:00:31]}  Kg7 {[%clk 0:00:23]} 36. Kg2 {[%clk 0:00:30]}  Re5 {[%clk 0:00:18]} 37. Rdf1 {[%clk 0:00:30]}  Ree7 {[%clk 0:00:16]} 38. Rf6 {[%clk 0:00:29]}  Bc3 {[%clk 0:00:14]} 39. R6f3 {[%clk 0:00:26]}  Bd4 {[%clk 0:00:14]} 40. d6 {[%clk 0:00:25]}  Rxd6 {[%clk 0:00:14]} 41. Rxf7+ {[%clk 0:00:25]}  Rxf7 {[%clk 0:00:14]} 42. Rxf7+ {[%clk 0:00:25]}  Kg8 {[%clk 0:00:15]} 43. Rxb7 {[%clk 0:00:25]}  a5 {[%clk 0:00:14]} 44. Bf7+ {[%clk 0:00:25]}  Kf8 {[%clk 0:00:13]} 45. Ra7 {[%clk 0:00:20]}  Bc3 {[%clk 0:00:12]} 46. Bd5 {[%clk 0:00:18]}  Rf6 {[%clk 0:00:12]} 47. Kg3 {[%clk 0:00:16]}  Be5+ {[%clk 0:00:12]} 48. Kh4 {[%clk 0:00:15]}  Bc3 {[%clk 0:00:11]} 49. Kh5 {[%clk 0:00:15]}  Ke8 {[%clk 0:00:10]} 50. g5 {[%clk 0:00:12]}  hxg5 {[%clk 0:00:10]} 51. Kxg5 {[%clk 0:00:12]}  Rb6 {[%clk 0:00:10]} 52. Kf5 {[%clk 0:00:13]}  Kd8 {[%clk 0:00:10]} 53. Ra8+ {[%clk 0:00:09]}  Kc7 {[%clk 0:00:10]} 54. Ra7+ {[%clk 0:00:10]}  Kd6 {[%clk 0:00:10]} 55. Ke4 {[%clk 0:00:09]}  Rb1 {[%clk 0:00:09]} 56. Ra6+ {[%clk 0:00:07]}  Ke7 {[%clk 0:00:09]} 57. Ra7+ {[%clk 0:00:08]}  Kf6 {[%clk 0:00:09]} 58. Kf4 {[%clk 0:00:06]}  Rf1+ {[%clk 0:00:08]} 59. Ke4 {[%clk 0:00:06]}  Re1+ {[%clk 0:00:09]} 60. Kd3 {[%clk 0:00:06]}  Bb4 {[%clk 0:00:09]} 61. Rf7+ {[%clk 0:00:05]}  Kg6 {[%clk 0:00:10]} 62. Ra7 {[%clk 0:00:05]}  Kg5 {[%clk 0:00:10]} 63. Rg7+ {[%clk 0:00:03]}  Kf6 {[%clk 0:00:09]} 64. Rf7+ {[%clk 0:00:04]}  Kg6 {[%clk 0:00:10]} 65. Ra7 {[%clk 0:00:05]}  Re5 {[%clk 0:00:09]} 66. Ra6+ {[%clk 0:00:05]}  Kg5 {[%clk 0:00:09]} 67. Ra7 {[%clk 0:00:06]}  Rf5 {[%clk 0:00:08]} 68. Rg7+ {[%clk 0:00:05]}  Kh6 {[%clk 0:00:08]} 69. Rf7 {[%clk 0:00:03]}  Rg5 {[%clk 0:00:08]} 70. Rf6+ {[%clk 0:00:03]}  Kh5 {[%clk 0:00:08]} 71. Rf7 {[%clk 0:00:03]}  Kh4 {[%clk 0:00:08]} 72. Ra7 {[%clk 0:00:02]}  Kg3 {[%clk 0:00:08]} 0-1


[Site "https://www.chess.com"]